bitfinex/quotes_BTCUSD_20241002
["timestamp","ask_amount","ask_price","bid_price","bid_amount"]
[1727845531494,0.32770113,61646.0,61645.0,0.001819]
[1727845531734,0.32770113,61646.0,61645.0,0.00381778]
[1727845531941,0.32770113,61646.0,61645.0,0.001819]
[1727845532125,0.32770113,61646.0,61645.0,0.00268606]
[1727845532367,0.32770113,61646.0,61645.0,0.000819]
[1727845532574,0.32770113,61646.0,61645.0,0.00268606]
[1727845532780,0.32770113,61646.0,61645.0,0.000819]
[1727845532982,0.32770113,61646.0,61645.0,0.00268606]
[1727845533204,0.32770113,61646.0,61645.0,0.000819]
[1727845533661,0.32770113,61646.0,61645.0,0.00268606]
[1727845533865,0.32770113,61646.0,61645.0,0.000819]
[1727845534078,0.32770113,61646.0,61645.0,0.00268606]
[1727845534287,0.32770113,61646.0,61645.0,0.000819]
[1727845534542,0.32770113,61646.0,61645.0,0.00268606]
[1727845534772,0.32770113,61646.0,61645.0,0.000819]
[1727845535033,0.32770113,61646.0,61645.0,0.00268606]
[1727845538475,0.32934113,61646.0,61645.0,0.00268606]
[1727845541437,0.303913,61646.0,61645.0,0.00268606]
[1727845541662,0.303913,61646.0,61645.0,0.000819]
[1727845542571,0.00464,61646.0,61645.0,0.000819]
[1727845542815,0.00464,61646.0,61645.0,0.13240458]
[1727845543060,0.00464,61646.0,61645.0,0.130594]
[1727845543305,0.00464,61646.0,61645.0,0.44781976]
[1727845543529,0.00164,61646.0,61645.0,0.62101976]
[1727845543953,0.00164,61646.0,61645.0,0.62201976]
[1727845544159,0.00164,61646.0,61645.0,0.62401976]
[1727845544370,0.00164,61646.0,61645.0,0.62101976]
[1727845544575,0.00164,61646.0,61645.0,0.63001976]
[1727845544813,0.00164,61646.0,61645.0,0.63601976]
[1727845545760,0.00164,61646.0,61645.0,0.38092531]
[1727845546013,0.00164,61646.0,61645.0,0.23020458]
[1727845546511,0.00154,61646.0,61645.0,0.14740458]
[1727845546752,0.00064,61646.0,61645.0,0.14740458]
[1727845547487,0.00024,61646.0,61645.0,0.14740458]
[1727845547711,0.129601,61652.0,61648.0,0.129767]
[1727845548040,0.129501,61652.0,61646.0,0.259543]
[1727845548244,0.129501,61652.0,61649.0,0.129766]
[1727845548245,0.129001,61652.0,61649.0,0.129766]
[1727845548497,0.129759,61653.0,61649.0,0.129766]
[1727845548699,0.129759,61653.0,61650.0,0.00181058]
[1727845549017,0.129459,61653.0,61650.0,0.00181058]
[1727845549220,0.129059,61653.0,61650.0,0.00181058]
[1727845549386,0.128959,61653.0,61650.0,0.00181058]
[1727845549585,0.259317,61653.0,61650.0,0.00181058]
[1727845549831,0.30788673,61654.0,61648.0,0.132767]
[1727845549832,0.129761,61652.0,61648.0,0.132767]
[1727845550032,0.130901,61652.0,61649.0,0.00181058]
[1727845550241,0.130601,61652.0,61649.0,0.00181058]
[1727845550617,0.130401,61652.0,61650.0,0.002]
[1727845550815,0.17857273,61652.0,61650.0,0.002]
[1727845551050,0.17857273,61652.0,61651.0,0.00181058]
[1727845551245,0.130201,61652.0,61648.0,0.129767]
[1727845551582,0.17867375,61652.0,61649.0,0.13456233]
[1727845551791,0.129763,61651.0,61649.0,0.00479633]
[1727845552713,0.05011549,61652.0,61649.0,0.00479633]
[1727845552913,0.17987649,61652.0,61649.0,0.00479633]
[1727845553121,0.129764,61650.0,61649.0,0.00179633]
[1727845553359,0.17823949,61650.0,61649.0,0.00179633]
[1727845553569,0.129766,61649.0,61648.0,0.001]
[1727845553853,0.389301,61649.0,61648.0,0.001]
[1727845554086,0.68031877,61649.0,61648.0,0.001]
[1727845554301,0.129773,61646.0,61645.0,0.000819]
[1727845554551,0.2024837,61646.0,61645.0,0.000819]
[1727845554987,0.129773,61646.0,61645.0,0.000819]
[1727845556123,0.32365604,61646.0,61645.0,0.000819]
[1727845556329,0.32365604,61646.0,61645.0,0.003819]
[1727845556539,0.32365604,61646.0,61645.0,0.000819]
[1727845556958,0.34908457,61646.0,61645.0,0.000819]
[1727845557127,0.35008457,61646.0,61645.0,0.000819]
[1727845557807,0.15620153,61646.0,61645.0,0.000819]
[1727845557973,0.35008789,61646.0,61645.0,0.000819]
[1727845558178,0.15620153,61646.0,61645.0,0.000819]
[1727845558753,0.35007466,61646.0,61645.0,0.000819]
[1727845560573,0.35007176,61646.0,61645.0,0.000819]
[1727845561372,0.44701623,61646.0,61645.0,0.000819]
[1727845561577,0.4215877,61646.0,61645.0,0.000819]
[1727845565087,0.19487023,61646.0,61645.0,0.000819]
[1727845565336,0.001,61646.0,61645.0,0.000819]
[1727845565500,0.04950078,61646.0,61645.0,0.130594]
[1727845565753,0.001,61646.0,61645.0,0.28131473]
[1727845565974,0.001,61646.0,61645.0,0.37401473]
[1727845566195,0.001,61646.0,61645.0,0.44911473]
[1727845567025,0.29146101,61651.0,61650.0,0.129764]
[1727845567436,0.04850078,61651.0,61650.0,0.129764]
[1727845568044,0.04850078,61651.0,61650.0,0.130764]
[1727845572322,0.00164,61652.0,61650.0,0.130764]
[1727845572323,0.05014078,61652.0,61651.0,0.129762]
[1727845572530,0.00164,61652.0,61651.0,0.129762]
[1727845573233,0.00164,61652.0,61651.0,0.36955645]
[1727845574332,0.00164,61652.0,61651.0,0.37055645]
[1727845574544,0.00164,61652.0,61651.0,0.46435645]
[1727845575174,0.00164,61652.0,61651.0,0.46835645]
[1727845576947,0.00164,61652.0,61651.0,0.47259739]
[1727845584746,0.00164,61652.0,61651.0,0.47341739]
[1727845587630,0.00164,61652.0,61651.0,0.57225506]
[1727845591995,0.00164,61652.0,61651.0,0.13982294]
[1727845592225,0.00164,61652.0,61651.0,0.00582]
[1727845592226,0.1314,61652.0,61651.0,0.00582]
[1727845594883,0.1314,61652.0,61651.0,0.00182]
[1727845595565,0.1314,61652.0,61651.0,0.00082]
[1727845596058,0.1334,61652.0,61651.0,0.00082]
[1727845596429,0.1314,61652.0,61651.0,0.00082]
[1727845596871,0.1334,61652.0,61651.0,0.00082]
[1727845598118,0.18185324,61652.0,61651.0,0.00082]
[1727845598348,0.1334,61652.0,61651.0,0.00082]
[1727845599035,0.15882602,61652.0,61651.0,0.00082]
[1727845602967,0.02906602,61652.0,61651.0,0.00082]
[1727845604331,0.15882602,61652.0,61651.0,0.00082]
[1727845605933,0.02906602,61652.0,61651.0,0.00082]
[1727845606170,0.00364,61652.0,61651.0,0.00082]
[1727845606402,0.1334,61652.0,61651.0,0.00082]
[1727845608264,0.1314,61652.0,61651.0,0.00082]
[1727845609833,0.17986752,61652.0,61651.0,0.00082]
[1727845610062,0.20410128,61652.0,61651.0,0.00082]
[1727845610486,0.1314,61652.0,61651.0,0.00082]
[1727845610699,0.20413356,61652.0,61651.0,0.00082]
[1727845611500,0.22955927,61652.0,61651.0,0.00082]
[1727845613927,0.22956063,61652.0,61651.0,0.00082]
[1727845614148,0.61755844,61652.0,61651.0,0.00082]
[1727845614369,0.52057854,61652.0,61651.0,0.00082]
[1727845615045,0.61755433,61652.0,61651.0,0.00082]
[1727845615282,0.52057854,61652.0,61651.0,0.00082]
[1727845615543,0.59212764,61652.0,61651.0,0.00082]
[1727845619479,0.61755418,61652.0,61651.0,0.00082]
[1727845620101,0.39877363,61652.0,61651.0,0.00082]
[1727845620316,0.61751108,61652.0,61651.0,0.00082]
[1727845620524,0.32602654,61652.0,61651.0,0.00082]
[1727845622171,0.52055345,61652.0,61651.0,0.00082]
[1727845622383,0.22956971,61652.0,61651.0,0.00082]
[1727845622601,0.02706654,61652.0,61651.0,0.130582]
[1727845622812,0.00164,61652.0,61651.0,0.208482]
[1727845624836,0.00164,61652.0,61651.0,0.212482]
[1727845625045,0.00164,61652.0,61651.0,0.213482]
[1727845628155,0.00164,61652.0,61651.0,0.135582]
[1727845628372,0.00164,61652.0,61651.0,0.00582]
[1727845628373,0.1314,61652.0,61651.0,0.00582]
[1727845628796,0.28342331,61652.0,61651.0,0.00582]
[1727845629217,0.28342331,61652.0,61651.0,0.00482]
[1727845629632,0.50265101,61652.0,61651.0,0.00482]
[1727845630047,0.28341948,61652.0,61651.0,0.00482]
[1727845630252,0.28341948,61652.0,61651.0,0.00082]
[1727845630456,0.30884529,61652.0,61651.0,0.00082]
[1727845630662,0.23602581,61652.0,61651.0,0.00082]
[1727845630876,0.30883859,61652.0,61651.0,0.00082]
[1727845631094,0.30883859,61652.0,61651.0,0.00382]
[1727845631511,0.30883859,61652.0,61651.0,0.00082]
[1727845632538,0.23602581,61652.0,61651.0,0.00082]
[1727845632753,0.2106,61652.0,61651.0,0.00082]
[1727845632968,0.1314,61652.0,61651.0,0.00082]
[1727845633173,0.22846387,61652.0,61651.0,0.00082]
[1727845633381,0.42333689,61652.0,61651.0,0.00082]
[1727845633790,0.32625782,61652.0,61651.0,0.00082]
[1727845633995,0.42333375,61652.0,61651.0,0.00082]
[1727845634611,0.32625782,61652.0,61651.0,0.00082]
[1727845634816,0.44760274,61652.0,61651.0,0.00082]
[1727845635644,0.47302823,61652.0,61651.0,0.00082]
[1727845636054,0.44760274,61652.0,61651.0,0.00082]
[1727845636500,0.32625782,61652.0,61651.0,0.00082]
[1727845636932,0.44762828,61652.0,61651.0,0.00082]
[1727845637137,0.32625782,61652.0,61651.0,0.00082]
[1727845639019,0.3516834,61652.0,61651.0,0.00082]
[1727845641928,0.32625782,61652.0,61651.0,0.00082]
[1727845642559,0.19649782,61652.0,61651.0,0.130582]
[1727845642778,0.0744811,61652.0,61651.0,0.130582]
[1727845642989,0.05020067,61652.0,61651.0,0.130582]
[1727845643200,0.00164,61652.0,61651.0,0.130582]
[1727845643865,0.00164,61652.0,61651.0,0.133582]
[1727845644099,0.00164,61652.0,61651.0,0.47267645]
[1727845644306,0.00164,61652.0,61651.0,0.57267645]
[1727845644515,0.00164,61652.0,61651.0,0.56967645]
[1727845644769,0.00164,61652.0,61651.0,0.57167645]
[1727845644992,0.00164,61652.0,61651.0,0.57467645]
[1727845645429,0.00164,61652.0,61651.0,0.58867645]
[1727845645659,0.00164,61652.0,61651.0,0.57467645]
[1727845645872,0.00164,61652.0,61651.0,0.56967645]
[1727845646987,0.00164,61652.0,61651.0,0.58367645]
[1727845647410,0.00164,61652.0,61651.0,0.59767645]
[1727845647665,0.00164,61652.0,61651.0,0.59677645]
[1727845648280,0.00164,61652.0,61651.0,0.59667645]
[1727845648491,0.00164,61652.0,61651.0,0.59587645]
[1727845648709,0.00164,61652.0,61651.0,0.59577645]
[1727845649388,0.00164,61652.0,61651.0,0.59497645]
[1727845649613,0.00164,61652.0,61651.0,0.59477645]
[1727845650312,0.00164,61652.0,61651.0,0.59407645]
[1727845650537,0.00164,61652.0,61651.0,0.59387645]
[1727845650746,0.00164,61652.0,61651.0,0.59377645]
[1727845651177,0.00164,61652.0,61651.0,0.59317645]
[1727845651399,0.00164,61652.0,61651.0,0.59307645]
[1727845651592,0.00164,61652.0,61651.0,0.59287645]
[1727845651841,0.00164,61652.0,61651.0,0.59277645]
[1727845652054,0.00164,61652.0,61651.0,0.59267645]
[1727845652924,0.00164,61652.0,61651.0,0.59467645]
[1727845653389,0.00164,61652.0,61651.0,0.59267645]
[1727845654081,0.00164,61652.0,61651.0,0.56467645]
[1727845654509,0.00164,61652.0,61651.0,0.59267645]
[1727845656723,0.00164,61652.0,61651.0,0.59349645]
[1727845661617,0.00164,61652.0,61651.0,0.02882]
[1727845662531,0.00164,61652.0,61651.0,0.01482]
[1727845663194,0.00164,61652.0,61651.0,0.144582]
[1727845663847,0.00164,61652.0,61651.0,0.130582]
[1727845664293,0.00164,61652.0,61651.0,0.144582]
[1727845664743,0.00164,61652.0,61651.0,0.130582]
[1727845665181,0.00164,61652.0,61651.0,0.133582]
[1727845672363,0.00164,61652.0,61651.0,0.37877645]
[1727845673022,0.00164,61652.0,61651.0,0.38293109]
[1727845673674,0.00164,61652.0,61651.0,0.37993109]
[1727845673896,0.00164,61652.0,61651.0,0.39793109]
[1727845674112,0.00164,61652.0,61651.0,0.49793109]
[1727845674336,0.00164,61652.0,61651.0,0.51470093]
[1727845674555,0.00164,61652.0,61651.0,0.49793109]
[1727845675056,0.00164,61652.0,61651.0,0.51470093]
[1727845676204,0.00164,61652.0,61651.0,0.49793109]
[1727845676421,0.00164,61652.0,61651.0,0.51469799]
[1727845677463,0.00164,61652.0,61651.0,0.61789799]
[1727845677682,0.00164,61652.0,61651.0,0.64857866]
[1727845678356,0.00164,61652.0,61651.0,0.63857866]
[1727845678577,0.00164,61652.0,61651.0,0.64057866]
[1727845678789,0.00164,61652.0,61651.0,0.71075057]
[1727845679220,0.00164,61652.0,61651.0,0.79767474]
[1727845679436,0.00164,61652.0,61651.0,0.79150976]
[1727845679671,0.00164,61652.0,61651.0,0.76678172]
[1727845679914,0.00164,61652.0,61651.0,0.67603648]
[1727845680134,0.00164,61652.0,61651.0,0.73219138]
[1727845680353,0.00164,61652.0,61651.0,0.74219717]
[1727845680572,0.00164,61652.0,61651.0,0.71638976]
[1727845680784,0.00164,61652.0,61651.0,0.64623486]
[1727845681031,0.00164,61652.0,61651.0,0.63223486]
[1727845681261,0.00164,61652.0,61651.0,0.64623486]
[1727845681918,0.00164,61652.0,61651.0,0.68837702]
[1727845682136,0.00164,61652.0,61651.0,0.63223486]
[1727845682845,0.00164,61652.0,61651.0,0.64623486]
[1727845683061,0.00164,61652.0,61651.0,0.78345998]
[1727845683280,0.00164,61652.0,61651.0,0.79743011]
[1727845683509,0.24459823,61662.0,61651.0,0.79743011]
[1727845683510,0.24459823,61662.0,61661.0,0.310441]
[1727845683728,0.24459823,61662.0,61661.0,0.59185383]
[1727845683979,0.001638,61662.0,61661.0,0.59185383]
[1727845684958,0.001638,61662.0,61661.0,0.57513545]
[1727845685168,0.001638,61662.0,61661.0,0.5918822]
[1727845685828,0.001638,61662.0,61661.0,0.57513545]
[1727845686064,0.001638,61662.0,61661.0,0.60588777]
[1727845686494,0.001638,61662.0,61661.0,0.61988777]
[1727845686706,0.001638,61662.0,61661.0,0.62488777]
[1727845687790,0.001638,61662.0,61661.0,0.65536389]
[1727845688007,0.001638,61662.0,61661.0,0.64136389]
[1727845688228,0.001638,61662.0,61661.0,0.6248502]
[1727845688446,0.001638,61662.0,61661.0,0.65533954]
[1727845688886,0.001638,61662.0,61661.0,0.6248502]
[1727845689138,0.001638,61662.0,61661.0,0.6108502]
[1727845689357,0.001638,61662.0,61661.0,0.6248502]
[1727845689581,0.001638,61662.0,61661.0,0.6108502]
[1727845690010,0.001638,61662.0,61661.0,0.6248502]
[1727845690661,0.001638,61662.0,61661.0,0.62902973]
[1727845692658,0.001638,61662.0,61661.0,2.11203273]
[1727845692866,0.001638,61662.0,61661.0,1.90019309]
[1727845693077,0.001638,61662.0,61661.0,0.75699773]
[1727845693722,0.001638,61662.0,61661.0,0.72899773]
[1727845693962,0.001638,61662.0,61661.0,0.74299773]
[1727845694184,0.24296023,61672.0,61671.0,0.12972]
[1727845694410,0.24296023,61672.0,61671.0,0.56861445]
[1727845694633,0.001638,61677.0,61671.0,0.56861445]
[1727845694634,0.001638,61677.0,61676.0,0.22971]
[1727845694874,0.001638,61677.0,61676.0,0.39440445]
[1727845696205,0.001638,61677.0,61676.0,0.40440445]
[1727845696424,0.001638,61677.0,61676.0,0.39440445]
[1727845696909,0.001638,61677.0,61676.0,0.40840445]
[1727845697135,0.001638,61677.0,61676.0,0.39440445]
[1727845697348,0.001638,61677.0,61676.0,0.42240445]
[1727845700451,0.001638,61677.0,61676.0,0.028]
[1727845700452,0.311045,61677.0,61676.0,0.028]
[1727845701176,0.33646038,61677.0,61676.0,0.028]
[1727845701668,0.311045,61677.0,61676.0,0.014]
[1727845701893,0.312045,61677.0,61676.0,0.001]
[1727845705967,0.33745975,61677.0,61676.0,0.001]
[1727845706384,0.312045,61677.0,61676.0,0.001]
[1727845707648,0.182338,61677.0,61676.0,0.13071]
[1727845707864,0.182338,61677.0,61676.0,0.001]
[1727845708285,0.182338,61677.0,61671.0,0.259437]
[1727845708286,0.129712,61675.0,61671.0,0.12972]
[1727845708712,0.441755,61677.0,61671.0,0.12972]
[1727845708919,0.440755,61677.0,61670.0,0.259441]
[1727845709124,0.440755,61677.0,61672.0,0.129717]
[1727845709125,0.129711,61676.0,61672.0,0.129717]
[1727845709345,0.129711,61676.0,61670.0,0.259441]
[1727845709346,0.259424,61675.0,61667.0,0.259456]
[1727845709557,0.129713,61675.0,61670.0,0.259444]
[1727845709763,0.130713,61675.0,61671.0,0.12972]
[1727845709972,0.129713,61675.0,61671.0,0.12972]
[1727845710427,0.12971,61676.0,61672.0,0.129717]
[1727845710630,0.12971,61676.0,61669.0,0.259447]
[1727845710631,0.12971,61676.0,61673.0,0.129716]
[1727845711274,0.001,61676.0,61673.0,0.129716]
[1727845711718,0.181338,61677.0,61671.0,0.259438]
[1727845711932,0.001,61676.0,61673.0,0.129715]
[1727845712350,0.001,61676.0,61674.0,0.129713]
[1727845712743,0.181338,61677.0,61674.0,0.129713]
[1727845712950,0.182338,61677.0,61674.0,0.129713]
[1727845713384,0.181338,61677.0,61673.0,0.25943]
[1727845713598,0.181338,61677.0,61676.0,0.12971]
[1727845713819,0.181338,61677.0,61676.0,0.29440445]
[1727845713820,0.001638,61677.0,61676.0,0.29440445]
[1727845715746,0.001638,61677.0,61676.0,0.29640445]
[1727845716178,0.001638,61677.0,61676.0,0.29840445]
[1727845717367,0.001638,61677.0,61676.0,0.29640445]
[1727845717577,0.001638,61677.0,61676.0,0.30040445]
[1727845719721,0.077038,61677.0,61676.0,0.006]
[1727845720375,0.077038,61677.0,61676.0,0.13571]
[1727845720593,0.077038,61677.0,61676.0,0.006]
[1727845720806,0.077038,61677.0,61676.0,0.13571]
[1727845722157,0.077038,61677.0,61676.0,0.006]
[1727845722827,0.077038,61677.0,61676.0,0.13571]
[1727845725208,0.077038,61677.0,61676.0,0.006]
[1727845725419,0.206745,61677.0,61676.0,0.006]
[1727845727778,0.077038,61677.0,61676.0,0.006]
[1727845728880,0.077038,61677.0,61676.0,0.004]
[1727845729156,0.078038,61677.0,61676.0,0.004]
[1727845729626,0.078038,61677.0,61676.0,0.13371]
[1727845729845,0.078038,61677.0,61676.0,0.12971]
[1727845730281,0.002638,61677.0,61676.0,0.12971]
[1727845730731,0.002638,61677.0,61676.0,0.13271]
[1727845731383,0.001638,61677.0,61676.0,0.13271]
[1727845731830,0.001638,61677.0,61676.0,0.13371]
[1727845733152,0.001638,61677.0,61676.0,0.004]
[1727845733653,0.001638,61677.0,61676.0,0.13371]
[1727845734101,0.001638,61677.0,61676.0,0.29840445]
[1727845735441,0.001638,61677.0,61676.0,0.30268613]
[1727845738057,0.001638,61677.0,61676.0,0.13371]
[1727845738280,0.001638,61677.0,61676.0,0.004]
[1727845738539,0.131345,61677.0,61676.0,0.004]
[1727845738756,0.001638,61677.0,61676.0,0.13371]
[1727845742507,0.001638,61677.0,61676.0,0.29840445]
[1727845744899,0.001638,61677.0,61676.0,0.004]
[1727845745119,0.26265045,61677.0,61676.0,0.004]
[1727845745333,0.28695318,61677.0,61676.0,0.004]
[1727845745550,0.28695318,61677.0,61676.0,0.13371]
[1727845745551,0.07460081,61677.0,61676.0,0.13371]
[1727845745779,0.05027833,61677.0,61676.0,0.13371]
[1727845746023,0.001638,61677.0,61676.0,0.13371]
[1727845746299,0.05027833,61677.0,61676.0,0.13371]
[1727845747331,0.001638,61677.0,61676.0,0.13371]
[1727845747777,0.131345,61677.0,61676.0,0.004]
[1727845748210,0.20433238,61677.0,61676.0,0.004]
[1727845748431,0.131345,61677.0,61676.0,0.004]
[1727845748665,0.22855591,61677.0,61676.0,0.004]
[1727845748921,0.33026571,61677.0,61676.0,0.004]
[1727845749349,0.20055871,61677.0,61676.0,0.004]
[1727845749559,0.07463117,61677.0,61676.0,0.004]
[1727845750015,0.20433817,61677.0,61676.0,0.004]
[1727845751328,0.131345,61677.0,61676.0,0.004]
[1727845752168,0.20434934,61677.0,61676.0,0.004]
[1727845752378,0.131345,61677.0,61676.0,0.004]
[1727845753477,0.33042836,61677.0,61676.0,0.004]
[1727845754328,0.3304191,61677.0,61676.0,0.004]
[1727845755832,0.42775696,61677.0,61676.0,0.004]
[1727845756914,0.3304191,61677.0,61676.0,0.004]
[1727845757595,0.4204191,61677.0,61676.0,0.004]
[1727845757812,0.6422259,61677.0,61676.0,0.004]
[1727845758465,0.4962191,61677.0,61676.0,0.004]
[1727845758749,0.4962191,61677.0,61676.0,0.003]
[1727845758985,0.4972191,61677.0,61676.0,0.003]
[1727845759200,0.6432259,61677.0,61676.0,0.003]
[1727845759414,0.4972191,61677.0,61676.0,0.003]
[1727845759632,0.129724,61670.0,61665.0,0.37269123]
[1727845759848,0.04866545,61666.0,61665.0,0.53738568]
[1727845760075,0.07299818,61667.0,61662.0,0.000819]
[1727845760305,0.129737,61663.0,61662.0,0.000819]
[1727845760898,0.04866614,61664.0,61662.0,0.000819]
[1727845760899,0.17840114,61664.0,61662.0,0.000819]
[1727845761140,0.129737,61663.0,61662.0,0.000819]
[1727845761351,0.04866614,61664.0,61662.0,0.000819]
[1727845761557,0.04866614,61664.0,61662.0,0.009819]
[1727845761558,0.129735,61664.0,61662.0,0.009819]
[1727845761760,0.129735,61664.0,61662.0,0.016819]
[1727845762171,0.17840114,61664.0,61662.0,0.016819]
[1727845762381,0.129735,61664.0,61662.0,0.016819]
[1727845762797,0.129735,61664.0,61662.0,0.007819]
[1727845763004,0.129735,61664.0,61662.0,0.015819]
[1727845763427,0.129735,61664.0,61662.0,0.008819]
[1727845763845,0.129735,61664.0,61662.0,0.014819]
[1727845764464,0.04866614,61665.0,61662.0,0.014819]
[1727845764908,0.129735,61664.0,61662.0,0.014819]
[1727845765738,0.129735,61664.0,61662.0,0.006819]
[1727845766142,0.129735,61664.0,61662.0,0.013819]
[1727845766365,0.129735,61664.0,61662.0,0.007819]
[1727845766583,0.129735,61664.0,61662.0,0.000819]
[1727845766820,0.129735,61664.0,61662.0,0.013819]
[1727845767032,0.129735,61664.0,61662.0,0.008819]
[1727845767266,0.129735,61664.0,61662.0,0.014819]
[1727845768234,0.30809613,61666.0,61662.0,0.014819]
[1727845768557,0.129735,61664.0,61662.0,0.014819]
[1727845769191,0.129735,61664.0,61662.0,0.006819]
[1727845769639,0.129735,61664.0,61662.0,0.012819]
[1727845770069,0.129733,61665.0,61662.0,0.136558]
[1727845770300,0.129733,61665.0,61662.0,0.014819]
[1727845770532,0.129736,61664.0,61662.0,0.014819]
[1727845771160,0.129736,61664.0,61662.0,0.008819]
[1727845771384,0.129736,61664.0,61662.0,0.013819]
[1727845771606,0.129736,61664.0,61662.0,0.008819]
[1727845772033,0.129736,61664.0,61662.0,0.006819]
[1727845772464,0.129736,61664.0,61662.0,0.013819]
[1727845772884,0.129737,61663.0,61662.0,0.006819]
[1727845773115,0.129737,61663.0,61662.0,0.014819]
[1727845773840,0.129737,61663.0,61662.0,0.008819]
[1727845774054,0.129737,61663.0,61662.0,0.015819]
[1727845774273,0.129737,61663.0,61662.0,0.007819]
[1727845775800,0.001638,61664.0,61663.0,0.211637]
[1727845776017,0.001638,61664.0,61663.0,0.37633145]
[1727845777282,0.001638,61664.0,61663.0,0.39033145]
[1727845778268,0.001638,61664.0,61663.0,0.143737]
[1727845778551,0.131373,61664.0,61663.0,0.014]
[1727845779001,0.001638,61664.0,61663.0,0.014]
[1727845784345,0.001638,61664.0,61663.0,0.143737]
[1727845784569,0.001638,61664.0,61663.0,0.014]
[1727845785003,0.131373,61664.0,61663.0,0.014]
[1727845786286,0.17996182,61664.0,61663.0,0.014]
[1727845786496,0.17997213,61664.0,61663.0,0.014]
[1727845786712,0.131373,61664.0,61663.0,0.014]
[1727845786916,0.222973,61664.0,61663.0,0.014]
[1727845788421,0.49531857,61664.0,61663.0,0.014]
[1727845788627,0.61679063,61664.0,61663.0,0.014]
[1727845788858,0.49531857,61664.0,61663.0,0.014]
[1727845789066,0.61682691,61664.0,61663.0,0.014]
[1727845789273,0.49531857,61664.0,61663.0,0.014]
[1727845789683,0.59252735,61664.0,61663.0,0.014]
[1727845790545,0.59253307,61664.0,61663.0,0.014]
[1727845790782,0.49531857,61664.0,61663.0,0.014]
[1727845790997,0.61682691,61664.0,61663.0,0.014]
[1727845791436,0.49531857,61664.0,61663.0,0.014]
[1727845792036,0.42593135,61664.0,61663.0,0.014]
[1727845792280,0.131373,61664.0,61663.0,0.014]
[1727845792488,0.17997597,61664.0,61663.0,0.014]
[1727845793125,0.20427987,61664.0,61663.0,0.014]
[1727845794209,0.20429183,61664.0,61663.0,0.014]
[1727845797280,0.07455683,61664.0,61663.0,0.143737]
[1727845797542,0.001638,61664.0,61663.0,0.219837]
[1727845799075,0.001638,61664.0,61663.0,0.38453145]
[1727845800376,0.001638,61664.0,61663.0,0.42057406]
[1727845800993,0.001638,61664.0,61663.0,0.38453145]
[1727845801819,0.001638,61664.0,61663.0,0.40373526]
[1727845802026,0.001638,61664.0,61663.0,0.42053633]
[1727845803464,0.001638,61664.0,61663.0,0.4248102]
[1727845803670,0.001638,61664.0,61663.0,0.40800913]
[1727845805333,0.001638,61664.0,61663.0,0.40801786]
[1727845805578,0.001638,61664.0,61663.0,0.38880532]
[1727845805788,0.001638,61664.0,61663.0,0.40801622]
[1727845806017,0.001638,61664.0,61663.0,0.38880532]
[1727845809079,0.001638,61664.0,61663.0,0.40797353]
[1727845809298,0.001638,61664.0,61663.0,0.38880532]
[1727845809767,0.001638,61664.0,61663.0,0.4079744]
[1727845810650,0.001638,61664.0,61663.0,0.40798246]
[1727845810858,0.001638,61664.0,61663.0,0.50698246]
[1727845811072,0.26837672,61676.0,61663.0,0.49404048]
[1727845811285,0.001638,61677.0,61676.0,0.30481]
[1727845812436,0.001638,61677.0,61676.0,0.46950445]
[1727845812641,0.001638,61677.0,61676.0,0.56950445]
[1727845813121,0.001638,61677.0,61676.0,0.57750445]
[1727845813326,0.001638,61677.0,61676.0,0.56950445]
[1727845813535,0.001638,61677.0,61676.0,0.57850445]
[1727845813996,0.001638,61677.0,61676.0,0.58950445]
[1727845816346,0.001638,61677.0,61676.0,0.59478136]
[1727845816561,0.001638,61677.0,61676.0,0.49578136]
[1727845827265,0.001638,61677.0,61676.0,0.41968136]
[1727845831926,0.001638,61677.0,61676.0,0.42289037]
[1727845840389,0.001638,61677.0,61676.0,0.8367506]
[1727845840612,0.001638,61677.0,61676.0,0.60716263]
[1727845841480,0.001638,61677.0,61676.0,0.59616263]
[1727845841705,0.001638,61677.0,61676.0,0.61016263]
[1727845842135,0.001638,61677.0,61676.0,0.60116263]
[1727845842344,0.001638,61677.0,61676.0,0.61516263]
[1727845843225,0.001638,61677.0,61676.0,0.60179037]
[1727845843635,0.001638,61677.0,61676.0,0.6151659]
[1727845843867,0.001638,61677.0,61676.0,0.85812613]
[1727845844109,0.001638,61677.0,61676.0,0.6151659]
[1727845845228,0.001638,61677.0,61676.0,0.6171659]
[1727845845474,0.001638,61677.0,61676.0,0.6031659]
[1727845845904,0.001638,61677.0,61676.0,0.6171659]
[1727845846112,0.001638,61677.0,61676.0,0.6151659]
[1727845846554,0.001638,61677.0,61676.0,0.6171659]
[1727845848531,0.001638,61677.0,61676.0,0.6151659]
[1727845850995,0.001638,61677.0,61676.0,0.6201659]
[1727845851419,0.001638,61677.0,61676.0,0.6221659]
[1727845851624,0.001638,61677.0,61676.0,0.65281518]
[1727845851825,0.001638,61677.0,61676.0,0.91877541]
[1727845852035,0.001638,61677.0,61676.0,0.67581518]
[1727845852685,0.001638,61677.0,61676.0,0.66181518]
[1727845853082,0.001638,61677.0,61676.0,0.67579587]
[1727845853285,0.001638,61677.0,61676.0,0.67582449]
[1727845853692,0.001638,61677.0,61676.0,0.64846827]
[1727845853893,0.001638,61677.0,61676.0,0.66182341]
[1727845854100,0.001638,61677.0,61676.0,0.67582341]
[1727845855132,0.001638,61677.0,61676.0,0.67382341]
[1727845855767,0.001638,61677.0,61676.0,0.67582341]
[1727845857066,0.001638,61677.0,61676.0,0.67382341]
[1727845857288,0.001638,61677.0,61676.0,0.67376576]
[1727845857498,0.001638,61677.0,61676.0,0.67375619]
[1727845857960,0.001638,61677.0,61676.0,0.67575619]
[1727845860072,0.001638,61677.0,61676.0,0.67577768]
[1727845861791,0.001638,61677.0,61676.0,0.67077768]
[1727845862001,0.001638,61677.0,61676.0,0.67577768]
[1727845864127,0.24296023,61691.0,61687.0,0.182]